Cogmind - Beta 17 @@@ ROGUE MODE // 2026.08.04 @ 19:24:26 Player: Afro Result: Smashed by cave-in Performance ------------- Evolutions (5) 2500 Regions Visited (4) 800 Robots Destroyed (51) 255 Value Destroyed (1548) 1548 Prototype IDs (8) 160 Alien Tech Used (0) 0 Bonus (800) 800 TOTAL SCORE: 6063 Bonus ------- Registered with UFD 300 Met Optimus in HQ 500 Cogmind --------- Core Integrity 0/1000 Matter 300/300 Energy 150/150 System Corruption 23% Temperature Cool (0) Movement Hovering (52) Location -5/Factory Parts ------- > --- POWER (2) -------- Micro Fission Core > --- PROPULSION (4) --- Gravmag Array Antigrav System Antigrav System > --- UTILITY (9) ------ Improved Heat Sink Melee Analysis Suite Advanced Melee Analysis Suite Advanced Melee Analysis Suite Advanced Melee Analysis Suite Advanced Melee Analysis Suite Improved Target Analyzer > --- WEAPON (2) ------- Power Sword Power Sword > --- INVENTORY (5) ---- Antigrav System Antigrav System Nuclear Pulse Array DRS Beacon (Ready) Peak State ------------ > --- POWER ------------ Micro Fission Core Micro Fission Core > --- PROPULSION ------- Gravmag Array Antigrav System Antigrav System > --- UTILITY ---------- Improved Heat Sink Improved Signal Interpreter Melee Analysis Suite Advanced Melee Analysis Suite Advanced Melee Analysis Suite Advanced Melee Analysis Suite Advanced Melee Analysis Suite Improved Target Analyzer Improved Transmission Jammer > --- WEAPON ----------- Power Sword Power Sword > --- INVENTORY -------- Antigrav System Antigrav System Nuclear Pulse Array DRS Beacon [Rating: 87] Favorites ----------- Power Ion Engine Engine Ion Engine Power Core Micro Fission Core Propulsion Light Treads Treads Light Treads Leg Flexi-carbon Leg Wheel Armored Huge Wheel Hover Unit Antigrav System Flight Unit Xenon Bombardment Thruster Utility Seismic Detector Device Seismic Detector Storage Large Storage Unit Processor Advanced Melee Analysis Suite Protection Hardened Medium Armor Plating Weapon Light Assault Rifle Energy Gun Small Laser Energy Cannon Improved EM Pulse Cannon Ballistic Gun Light Assault Rifle Ballistic Cannon Heavy Flak Cannon Special Weapon Mining Laser Slashing Weapon Power Sword Piercing Weapon Heavy Pick Build | -11 -10 -10 -7 -5 ------- Run | Yrd Mat Sub Scr Fac Slots Evolved 10 | . . . . 10 Power 1 | . . . . 1 Propulsion 2 | . . . . 2 Utility 7 | . . . . 7 Weapon . | . . . . . Parts Attached 71 | 8 2 . 10 51 Power 13 | 1 . . 3 9 Engine 5 | 1 . . 3 1 Core 8 | . . . . 8 Reactor . | . . . . . Propulsion 21 | 2 . . 3 16 Treads 3 | 2 . . . 1 Leg 3 | . . . . 3 Wheel 2 | . . . 1 1 Hover 6 | . . . . 6 Flight 7 | . . . 2 5 Utility 26 | 2 1 . 2 21 Device 12 | 1 . . . 11 Storage 3 | 1 1 . 1 . Processor 8 | . . . . 8 Hackware . | . . . . . Protection 3 | . . . 1 2 Artifact . | . . . . . Weapon 11 | 3 1 . 2 5 Energy Gun 1 | 1 . . . . Energy Cannon 1 | . . . 1 . Ballistic Gun 3 | 2 . . . 1 Ballistic Cannon 1 | . . . 1 . Launcher . | . . . . . Special Weapon 1 | . 1 . . . Impact Weapon . | . . . . . Slashing Weapon 3 | . . . . 3 Piercing Weapon 1 | . . . . 1 Special Melee Weapon . | . . . . . Unidentified Prototypes 2 | . . . . 2 Parts Lost 27 | . . . . 27 Power 5 | . . . . 5 Propulsion 8 | . . . . 8 Utility 11 | . . . . 11 Weapon 3 | . . . . 3 Highest Loss Streak 10 | . . . . 10 To Critical Strikes . | . . . . . Average Backups 12 | 5 8 12 15 9 Power 1 | 1 2 2 . 1 Propulsion 2 | 1 2 4 2 2 Utility 5 | . 1 3 8 2 Weapon 3 | . 2 3 4 2 Tool/Special . | . . . . . Unused Backups 25 | . 1 . 15 9 Power 4 | . . . 2 2 Propulsion 8 | . . . 5 3 Utility 7 | . 1 . 4 2 Weapon 6 | . . . 4 2 Tool/Special . | . . . . . Average Slot Usage (%) 90 | . 100 100 97 73 Engine 10 | . 14 14 13 1 Core 1 | . . . . 6 Treads 17 | . 28 28 23 . Wheel 2 | . . . 2 3 Hover 1 | . . . . 4 Device 13 | . 14 14 11 16 Storage 10 | . 14 14 14 2 Processor 6 | . . . . 20 Protection 2 | . . . 2 2 Energy Cannon 1 | . . . 1 . Ballistic Gun 18 | . 27 28 24 2 Ballistic Cannon 1 | . . . 1 1 Peak Build Rating 87 | 7 8 8 32 87 Average Rating 26 | 6 7 8 15 64 On Entrance 11 | . 7 8 8 32 Avg Prop Armor Cover (%) 8 | . . . . 8 Naked Turns . | . . . . . Heaviest Build 92 | 14 29 29 67 92 Greatest Support 56 | 40 40 40 40 56 Greatest Overweight (x) 5 | . . . 5 4 Average Overweight (x) . | . . . . . Largest Inventory Capacity 20 | 8 15 15 20 20 Average Capacity 14 | 7 9 15 16 12 Most Carried 20 | 7 12 12 20 20 Average Carried 12 | 5 8 12 16 10 Final Capacity 20 | 8 15 15 20 5 Final Carried 20 | 7 12 12 20 5 Scrap Suit Usage (%) 13 | . . . . 51 Parts Cannibalized 3 | . . . . 3 Class Distribution -------------------- 77% | Mutant 7% | Scavenger-Mutant 5% | Derelict-Mutant 4% | Derelict-Skirmisher 3% | Scavenger-Gladiator Dominant Class ---------------- Mutant | -10/Materials Mutant | -10/Subcaves Mutant | -7/Scraptown Mutant | -5/Factory Resources | -11 -10 -10 -7 -5 ----------- Run | Yrd Mat Sub Scr Fac Matter Collected 1739 | 438 127 . 80 1094 Remotely . | . . . . . Salvage Created 1776 | 323 311 . . 1142 Parts 121 | 29 19 . . 73 Haulers Intercepted 1 | . 1 . . . Recyclers Shooed 4 | 1 1 . . 2 Parts Field Recycled . | . . . . . Retrieved Matter . | . . . . . Parts Self-Destructed . | . . . . . Prevented . | . . . . . Parts Restored . | . . . . . Kills | -11 -10 -10 -7 -5 ------- Run | Yrd Mat Sub Scr Fac Combat Hostiles Destroyed 31 | . 8 . . 23 Melee 10 | . . . . 10 Guns 15 | . 8 . . 7 Cannons 4 | . . . . 4 AOE 1 | . . . . 1 Classes Destroyed 10 | 3 3 . . 4 Worker 4 | 2 1 . . 1 Builder 1 | . . . . 1 Tunneler 11 | 9 . . . 2 Hauler 1 | . 1 . . . Recycler 2 | 1 . . . 1 Watcher 1 | . . . . 1 Swarmer 11 | . 3 . . 8 Grunt 8 | . 5 . . 3 Hunter 5 | . . . . 5 Programmer 7 | . . . . 7 Best Kill Streak 5 | 3 3 . . 5 Combat Bots Only 4 | . 3 . . 4 Max Kills in Single Turn 2 | 1 2 . . 2 Gunslinging 1 | . 1 . . . Exploded 1 | . . . . 1 Melee 1 | . . . . 1 Uniques/NPCs Destroyed . | . . . . . Combat | -11 -10 -10 -7 -5 -------- Run | Yrd Mat Sub Scr Fac Hostile Shots Fired 363 | . 35 . . 328 Missed 98 | . 11 . . 87 Hits 265 | . 24 . . 241 Projectile 265 | . 24 . . 241 AOE 1 | . . . . 1 Critical Strikes 6 | . . . . 6 Damage Taken 4747 | . 244 . . 4503 Core 1082 | . 52 . . 1030 Absorbed by Shields . | . . . . . Regen/Repaired (Parts) 223 | . . . 197 26 Core Remaining (%) 89 | 100 . . 79 . Volleys Fired 104 | 38 26 . . 40 Largest 2 | 2 2 . . 2 Hottest 113 | 40 100 . . 113 Shots Fired 201 | 76 50 . . 75 Gun 155 | 76 48 . . 31 Cannon 44 | . . . . 44 Launcher . | . . . . . Special 2 | . 2 . . . Kinetic 191 | 76 48 . . 67 Thermal 2 | . 2 . . . Explosive . | . . . . . Electromagnetic 8 | . . . . 8 Robot Hit Streak 11 | 7 7 . . 11 Robot Miss Streak 6 | 2 4 . . 6 Penetration Max 1 | . . . . 1 Secondary Targets 1 | . 1 . . . Max Gunslinging Chain 1 | . 1 . . . Shots Hit Robots 159 | 49 27 . . 83 Core Hits 92 | 18 16 . . 58 Critical Kills 1 | . . . . 1 Critical Parts Destroyed 1 | . . . . 1 Critical Strikes 6 | . . . . 6 Destroy 2 | . . . . 2 Sever 4 | . . . . 4 Melee Attacks 68 | . . . . 68 Impact . | . . . . . Slashing 67 | . . . . 67 Piercing 1 | . . . . 1 Sneak Attacks 9 | . . . . 9 Combat Hostiles . | . . . . . Follow-up Attacks . | . . . . . Damage Inflicted 3955 | 500 301 . . 3154 Guns 1333 | 500 289 . . 544 Cannons 746 | . . . . 746 Explosions . | . . . . . Melee 1810 | . . . . 1810 Ramming 66 | . 12 . . 54 Kinetic 1846 | 500 289 . . 1057 Thermal . | . . . . . Explosive . | . . . . . Electromagnetic 233 | . . . . 233 Impact . | . . . . . Slashing 1810 | . . . . 1810 Piercing . | . . . . . Highest Corruption 17 | . . . . 17 Average Corruption 9 | . . . . 9 Corruption Purged . | . . . . . Corruption Blocked . | . . . . . Effects 50 | . . . . 50 Message Errors 12 | . . . . 12 Matter Fused 11 | . . . . 11 Heat Flow Errors 5 | . . . . 5 Energy Discharges 8 | . . . . 8 Data Loss (minor) 9 | . . . . 9 Data Loss (major) 2 | . . . . 2 Alerts 1 | . . . . 1 Misdirections 1 | . . . . 1 Weapon Failures 1 | . . . . 1 Overload Shots . | . . . . . Overflow Damage 308 | . . . . 308 Projectiles 2 | . . . . 2 Explosions . | . . . . . Melee 306 | . . . . 306 Knockbacks 13 | . . . . 13 Impact . | . . . . . Kinetic 13 | . . . . 13 Secondary . | . . . . . Self-Inflicted Damage 26 | . . . . 26 Shots . | . . . . . Rammed 8 | . 2 . . 6 Targets Rammed 9 | . 3 . . 6 Kicked . | . . . . . Crushed 1 | . 1 . . . Highest Temperature 312 | . 40 . . 312 Average Temperature 78 | . 14 . . 85 Received Heat Transfer 315 | . 69 . . 246 Effects 2 | . . . . 2 Interference 1 | . . . . 1 Matter Decay 1 | . . . . 1 Siege Activations . | . . . . . Martial Activations . | . . . . . Shielding Activations . | . . . . . Robots Disrupted . | . . . . . Combat Hostiles . | . . . . . Robots Corrupted 1 | . . . . 1 Combat Hostiles 1 | . . . . 1 Parts Fried 3 | . . . . 3 Impact Corruptions . | . . . . . Robots Melted . | . . . . . Combat Hostiles . | . . . . . Parts Melted . | . . . . . Heat Transferred . | . . . . . Parts Sabotaged . | . . . . . Parts Stolen . | . . . . . Parts Stripped . | . . . . . Power Chain Reactions . | . . . . . Alert | -11 -10 -10 -7 -5 ------- Run | Yrd Mat Sub Scr Fac Maximum Alert Level 1 | . . . . 1 Low Security (%) 98 | 100 100 . . 97 Level 1 1 | . . . . 2 Level 2 . | . . . . . Level 3 . | . . . . . Level 4 . | . . . . . Level 5 . | . . . . . High Security . | . . . . . Max Security . | . . . . . Peak Influence 278 | 10 122 . . 278 Initial . | . . . . . Average 53 | . 48 . . 74 Influence Increases 1256 | 60 277 . . 919 Destroy 0b10 Robot/C 620 | . 160 . . 460 Destroy 0b10 Robot/NC 100 | 60 10 . . 30 Destroy Leader 144 | . 42 . . 102 Successful Hack 24 | . 5 . . 19 Disable Machine 30 | . 15 . . 15 Destroy Structure 68 | . . . . 68 Partial Spotted 15 | . . . . 15 Lose Combat Pursuer 255 | . 45 . . 210 Influence Decreases 978 | 60 242 35 . 641 Entered New Map 18 | . . 18 . . Time Decay 700 | 60 242 17 . 381 Lost Part 260 | . . . . 260 Squads Dispatched 12 | . 2 . . 10 Investigation 4 | . 1 . . 3 Extermination 3 | . . . . 3 Reinforcement 5 | . 1 . . 4 Assault . | . . . . . Garrison . | . . . . . Intercept . | . . . . . Searches Triggered . | . . . . . Construction Impeded 2 | . . . . 2 Haulers Reinforced 1 | . . . . 1 Active Scanning Responses . | . . . . . Cargo Convoy Interrupts . | . . . . . Stealth | -11 -10 -10 -7 -5 --------- Run | Yrd Mat Sub Scr Fac Distress Signals 1 | . 1 . . . Communications Jammed 22 | . . . . 22 Distress Signals 22 | . . . . 22 Times Spotted 61 | . 18 . . 43 Peak Tracking Total 8 | . 5 . . 8 Tactical Retreats 8 | . 2 . . 6 Traps | -11 -10 -10 -7 -5 ------- Run | Yrd Mat Sub Scr Fac Traps Triggered 2 | . 1 . . 1 Indirectly . | . . . . . Trap Hack Attempts . | . . . . . Triggered . | . . . . . Disarmed . | . . . . . Reprogrammed . | . . . . . Reused . | . . . . . Traps Extracted . | . . . . . Installed . | . . . . . Triggered . | . . . . . Machines | -11 -10 -10 -7 -5 ---------- Run | Yrd Mat Sub Scr Fac Machines Disabled 2 | . 1 . . 1 Max in Single Turn 1 | . 1 . . 1 Machines Repaired . | . . . . . Machines Dismantled . | . . . . . Machines Sabotaged . | . . . . . Overloaded Fab Kills . | . . . . . Hacking | -11 -10 -10 -7 -5 --------- Run | Yrd Mat Sub Scr Fac Machines Accessed 14 | . 2 . 6 6 Terminals 4 | . 2 . . 2 Fabricators . | . . . . . Repair Stations . | . . . . . Recycling Units 3 | . . . . 3 Scanalyzers 1 | . . . . 1 Garrison Access . | . . . . . Total Hacks 61 | . 10 . 38 13 Successful 49 | . 3 . 38 8 Failed 11 | . 6 . . 5 Catastrophic . | . . . . . Database Lockouts 1 | . 1 . . . Manual 19 | . 10 . . 9 Terminals 14 | . 10 . . 4 Fabricators . | . . . . . Repair Stations . | . . . . . Recycling Units 4 | . . . . 4 Scanalyzers 5 | . . . . 5 Garrison Access . | . . . . . Terminal Hacks 39 | . 1 . 38 . Record 37 | . . . 37 . Robot Analysis 1 | . 1 . . . Proto ID Catalog 1 | . . . 1 . Fabricator Hacks . | . . . . . Repair Station Hacks . | . . . . . Recycling Unit Hacks . | . . . . . Scanalyzer 4 | . . . . 4 Insert Component 1 | . . . . 1 Retrieve Study 3 | . . . . 3 Garrison Access Hacks . | . . . . . Unauthorized Hacks 6 | . 2 . . 4 Terminals 4 | . 2 . . 2 Botnet 4 | . 2 . . 2 Fabricators . | . . . . . Repair Stations . | . . . . . Recycling Units 2 | . . . . 2 Fedlink 2 | . . . . 2 Scanalyzers . | . . . . . Garrison Access . | . . . . . Data Cores Recovered . | . . . . . Used . | . . . . . Hacking Detections 6 | . 2 . . 4 Full Trace Events 1 | . . . . 1 Feedback Events . | . . . . . Feedback Blocked . | . . . . . Robot Schematics Acquired . | . . . . . Robots Built . | . . . . . Authchips . | . . . . . Time . | . . . . . Total Robot Build Rating . | . . . . . Part Schematics Acquired . | . . . . . Parts Built . | . . . . . Authchips . | . . . . . Time . | . . . . . Total Part Build Rating . | . . . . . Part Studies Acquired 3 | . . . . 3 Parts Repaired . | . . . . . Time . | . . . . . Parts Recycled . | . . . . . Recycled Matter . | . . . . . Retrieved Matter . | . . . . . Retrieved Components . | . . . . . Parts Scanalyzed . | . . . . . Part Schematics Acquired . | . . . . . Parts Damaged . | . . . . . Bothacking | -11 -10 -10 -7 -5 ------------ Run | Yrd Mat Sub Scr Fac Used RIF Installer . | . . . . . Robots Hacked . | . . . . . Non-combat . | . . . . . Combat . | . . . . . Robot Hacks Applied . | . . . . . Relay Couplers Released . | . . . . . Fabnet Peak Effective % . | . . . . . Robots Rewired . | . . . . . Allies Hacked . | . . . . . Hacks Repelled . | . . . . . Allies | -11 -10 -10 -7 -5 -------- Run | Yrd Mat Sub Scr Fac Total Allies . | . . . . . Largest Group . | . . . . . Highest-Rated Group . | . . . . . Highest-Rated Ally . | . . . . . Initial UFD Resources 39 | . . . . 39 Total Orders . | . . . . . Ally Attacks . | . . . . . Total Damage . | . . . . . Kills . | . . . . . Allies Corrupted . | . . . . . Allies Melted . | . . . . . Intel | -11 -10 -10 -7 -5 ------- Run | Yrd Mat Sub Scr Fac Active Infowar (turns) 5758 | 573 670 196 2995 1324 Sensors 767 | . . . . 767 Structural 564 | . . . . 564 Seismic 4434 | 573 670 196 2995 . Machine Analysis 332 | . . . . 332 Jamming 1234 | . . . . 1234 ECM 10 | . . . . 10 Robot Analysis Total 1 | . 1 . . . Derelict Logs Recovered 1 | . . 1 . . Drone Launches . | . . . . . Drone Recoveries . | . . . . . Exploration | -11 -10 -10 -7 -5 ------------- Run | Yrd Mat Sub Scr Fac Turns Passed 6922 | 671 670 196 3564 1821 Spaces Moved 4288 | 343 331 123 2131 1360 Core 23 | 4 . . . 19 Treads 2497 | 339 331 123 1704 . Legs 94 | . . . . 94 Wheels 991 | . . . 418 573 Hover 603 | . . . . 603 Flight 80 | . . . 9 71 Fastest Speed 33 | 50 160 160 115 33 Average Speed 140 | 158 160 160 164 91 Slowest Speed 437 | 160 160 160 437 250 Overloaded Moves . | . . . . . Propulsion Burnouts . | . . . . . Robots Hopped . | . . . . . Potential Cave-ins . | . . . . . Cave-ins Triggered 2 | . . . . 2 Exploration Rate (%) 37 | 11 50 9 95 20 Regions Visited 4 Branch Regions 2 Pre-discovered Areas 2 | . . 1 . 1 Known Exits Taken . | . . . . . Unknown Exits Taken 4 | 1 1 1 1 . Scrap Searched 12 | . . . 12 . Spaces Dug 28 | . . . . 28 Terrain Destroyed 37 | . . . . 37 Melee 28 | . . . . 28 Projectile 9 | . . . . 9 AOE . | . . . . . Terrain Rammed . | . . . . . Walls Destroyed . | . . . . . Machines Disabled . | . . . . . Actions | -11 -10 -10 -7 -5 --------- Run | Yrd Mat Sub Scr Fac Total 4924 | 397 421 122 2204 1780 Wait 197 | . 51 . . 146 Move 4284 | 342 330 122 2130 1360 Hop . | . . . . . Pick Up 82 | 7 6 . 29 40 Fast Attach 40 | 7 . . 3 30 Attach 40 | . . . 6 34 Detach 6 | . . . . 6 Swap 16 | 2 3 . 2 9 Drop 72 | 1 2 . 28 41 Fire 104 | 38 26 . . 40 Melee 68 | . . . . 68 Ram 6 | . . . . 6 Kick . | . . . . . Crush 3 | . 3 . . . Escape Stasis . | . . . . . Rewire 6 | . . . 6 . Trap . | . . . . . Miscellaneous . | . . . . . Route ------- -11/Scrapyard -10/Materials (discovered 3 exits: [*Mat x2] / [*Sub]) -10/Subcaves -7/Scraptown (discovered 2 exits: *Fac x2) -5/Factory (discovered 1 exit: [*Fac]) History --------- Turn | Location | Event 18 | -11/Scrapyard | Discovered new exit (range 16) 672 | -11/Scrapyard | Entered Materials 673 | -10/Materials | Build established: Mutant 985 | -10/Materials | Discovered new exit (range 11) 1002 | -10/Materials | Discovered new exit (range 16) 1228 | -10/Materials | Central database locked down 1250 | -10/Materials | Discovered new exit (range 3) 1342 | -10/Materials | Entered Subcaves 1343 | -10/Subcaves | Approached by a straggling Scientist 1438 | -10/Subcaves | A swath of the cavern ceiling suddenly collapsed 1531 | -10/Subcaves | Scientist uncovered a shortcut to Scraptown 1538 | -10/Subcaves | Entered Scraptown 2053 | -7/Scraptown | Heard Great Nut preacher, LISTEN AND RECITE! 2090 | -7/Scraptown | Visited Comm Corps 2203 | -7/Scraptown | Visited CPS Storage 2232 | -7/Scraptown | Visited CR-KLE's Repair Center 2526 | -7/Scraptown | Visited Shadow of the Wyrm 2673 | -7/Scraptown | Visited Bundlers 2807 | -7/Scraptown | Visited IN-MT5's Study 2852 | -7/Scraptown | Visited The Evicted 2961 | -7/Scraptown | Discovered new exit (range 13) 3415 | -7/Scraptown | Visited UFD Registry 3415 | -7/Scraptown | Registered with UFD as "Nullpod" 3450 | -7/Scraptown | Visited Science Testing Area 3494 | -7/Scraptown | Visited Science Guys 3552 | -7/Scraptown | Visited Observation Area 3861 | -7/Scraptown | Visited Supply Room 3975 | -7/Scraptown | Visited Derelict Rescue Squad 3989 | -7/Scraptown | Found DRS Beacon 4028 | -7/Scraptown | Visited Curators Association 4115 | -7/Scraptown | Discovered new exit (range 5) 4170 | -7/Scraptown | Found Scrap Suit 4394 | -7/Scraptown | Visited Scrap Suit Storage 4478 | -7/Scraptown | Visited DA-N13 Charitable Foundation 4488 | -7/Scraptown | Found DCF Scrap (25 items) 4608 | -7/Scraptown | Visited Junk Repository 4829 | -7/Scraptown | CR-KLE repaired 7 parts 5019 | -7/Scraptown | Met Optimus 5019 | -7/Scraptown | Accepted into 0bPrime 5102 | -7/Scraptown | Entered Factory 5102 | -5/Factory | Evolved 10 slots: Power x1, Propulsion x2, Utility x7 5121 | -5/Factory | Loaded intel: 8 recycling unit locations 5405 | -5/Factory | Build established: Derelict-Skirmisher 5835 | -5/Factory | Build established: Mutant 6013 | -5/Factory | Lost 3 parts (1p1n1u) 6102 | -5/Factory | Lost 10 parts (4n4u2w) 6146 | -5/Factory | Core integrity fell below 50% 6160 | -5/Factory | Crushed by falling debris 6172 | -5/Factory | System corruption reached 10% 6186 | -5/Factory | Core integrity fell below 20% 6219 | -5/Factory | Lost 6 parts (3p1n2u) 6492 | -5/Factory | Build established: Scavenger-Mutant 6732 | -5/Factory | Learned location of Protoforge (-2) 6915 | -5/Factory | Discovered new exit (range 13) 6924 | -5/Factory | Crushed by falling debris 6924 | -5/Factory | Smashed by cave-in Last Messages --------------- 06850_ U-05 Engineer destroyed. 06853_ K-01 Serf collects debris. 06857_ Terminal disabled. 06857_ Assembly Bed disabled. 06862_ K-01 Serf collects debris. 06863_ O>6PM3WEBNVKNBMY24,LP2XFRUUP>L4=NG|: 06886_ T |6DNZ>T7XLFXSEM1KBGDANLDID<